fUSD/lending_fUSD_20240524
["ID","MTS","AMOUNT","RATE_DAILY","PERIOD"]
[327848965,1716557440890,-155.93944088,0.00025964,2]
[327848966,1716557440903,-160.36674768,0.00025985,2]
[327848967,1716557440915,-242.03906462,0.00026,2]
[327848968,1716557440929,-8540.12065126,0.00026,5]
[327848969,1716557440941,-166.66666665,0.00026,2]
[327848970,1716557440954,-171.19801285,0.00026053,2]
[327848971,1716557440967,-155.93944088,0.00026066,2]
[327848972,1716557440980,-171.19801285,0.00026071,2]
[327848973,1716557440993,-155.93944088,0.00026077,2]
[327848974,1716557441006,-194.63777349,0.00026078,2]
[327848975,1716557441019,-287.2167269,0.00026127,2]
[327848976,1716557441032,-152.07462579,0.00026224,2]
[327848977,1716557441045,-157.46032732,0.00026267,2]
[327848978,1716557441057,-675.545597,0.00026269,2]
[327848979,1716557441070,-420.524747,0.00026269,2]
[327848980,1716557441082,-236.330708,0.00026269,2]
[327848981,1716557441094,-151.0,0.00026376,2]
[327848982,1716557441107,-287.2167269,0.00026413,2]
[327848983,1716557441119,-154.46215546,0.00026438,2]
[327848984,1716557441131,-154.46215546,0.00026443,2]
[327848985,1716557441144,-287.2167269,0.00026465,2]
[327848986,1716557441156,-152.07462579,0.00026474,2]
[327848987,1716557441169,-194.63777349,0.00026518,2]
[327848988,1716557441182,-166.66666667,0.00026534,2]
[327848989,1716557441198,-675.545597,0.00026585,2]
[327848990,1716557441211,-420.524747,0.00026585,2]
[327848991,1716557441224,-236.330708,0.00026585,2]
[327848992,1716557441240,-186.015969,0.00026585,2]
[327848993,1716557441253,-303.29216816,0.00026614,2]
[327848994,1716557441265,-152.07462579,0.00026631,2]
[327848995,1716557441279,-181.42429376,0.00026671,2]
[327848996,1716557441293,-155.93944088,0.00026719,2]
[327848997,1716557441305,-171.19801285,0.00026745,2]
[327848998,1716557441317,-152.07462579,0.00026794,2]
[327848999,1716557441330,-200.0,0.000268,9]
[327849000,1716557441343,-155.93944088,0.00026819,2]
[327849001,1716557441355,-152.01318794,0.0002686,2]
[327849002,1716557441366,-500.0,0.000269,9]
[327849003,1716557441380,-171.19801285,0.00026915,2]
[327849004,1716557441392,-272.86,0.00026921,2]
[327849005,1716557441404,-171.19801285,0.00026956,2]
[327849006,1716557441417,-166.66666666,0.00026958,2]
[327849007,1716557441430,-155.58206812,0.00027,4]
[327849008,1716557441442,-9947.52,0.00027,2]
[327849009,1716557441455,-915.213253,0.00027,2]
[327849010,1716557441468,-2000.0,0.00027,2]
[327849011,1716557441481,-5006.0,0.00027,4]
[327849012,1716557441493,-500.0,0.00027006,2]
[327849013,1716557441505,-3872.855955,0.0002701,2]
[327849014,1716557441518,-180.17659276,0.00027038,2]
[327849015,1716557441530,-1039.68474786,0.00027068,2]
[327849016,1716557441543,-500.0,0.00027068,2]
[327849017,1716557441555,-7521.99858144,0.00027068,2]
[327849018,1716557441568,-1199.60639171,0.00027068,2]
[327849019,1716557441580,-409.97178172,0.00027068,2]
[327849020,1716557441593,-513136.35912026,0.00027068,2]
[327849052,1716557444369,-2035.1008069,0.00027068,2]
[327849053,1716557444381,-6590.36093171,0.00027068,2]
[327849054,1716557444463,-2363.1888668,0.00027068,2]
[327849055,1716557444509,-322.85018007,0.00027068,2]
[327849056,1716557444630,-325.31628963,0.00027068,2]
[327849057,1716557444643,-3028.05107402,0.00027068,2]
[327849058,1716557444655,-1986.70436183,0.00027068,2]
[327849059,1716557444668,-437.67425616,0.00027068,2]
[327849060,1716557444682,-4996.25465829,0.00027068,2]
[327849061,1716557444695,-12628.26652615,0.00027068,2]
[327849062,1716557444706,-152.01318794,0.00027177,2]
[327849063,1716557444716,-171.19801285,0.00027218,2]
[327849064,1716557444728,-154.1095785,0.00027241,2]
[327849065,1716557444738,-211.6943475,0.00027277,2]
[327849066,1716557444749,-154.46215546,0.00027281,2]
[327849067,1716557444759,-242.05058954,0.00027297,2]
[327849068,1716557444770,-152.07462579,0.00027334,2]
[327849069,1716557444780,-155.93944088,0.00027349,2]
[327849070,1716557444790,-155.93944088,0.00027382,2]
[327849071,1716557444800,-1781.72324393,0.00027397,2]
[327849072,1716557444981,-12392.93675607,0.00027397,2]
[327849073,1716557444991,-15837.75,0.00027397,2]
[327849074,1716557445002,-1219.38,0.00027397,10]
[327849075,1716557445012,-1016.15,0.00027397,10]
[327849076,1716557445022,-846.79,0.00027397,10]
[327849077,1716557445032,-153.39,0.000274,2]
[327849078,1716557445043,-153.39,0.000274,2]
[327849079,1716557445053,-153.39,0.000274,2]
[327849080,1716557445064,-194.63777349,0.00027407,2]
[327849081,1716557445074,-194.63777349,0.00027462,2]
[327849082,1716557445084,-155.93944088,0.00027469,2]
[327849083,1716557445094,-194.63777349,0.00027496,2]
[327849084,1716557445104,-287.2167269,0.00027513,2]
[327849085,1716557445114,-287.2167269,0.0002756,2]
[327849086,1716557445124,-211.6943475,0.00027597,2]
[327849087,1716557445135,-157.46032732,0.00027604,2]
[327849088,1716557445146,-194.63777349,0.00027685,2]
[327849089,1716557445156,-171.19801285,0.0002786,2]
[327849090,1716557445167,-171.19801285,0.00027876,2]
[327849091,1716557445177,-155.93944088,0.00027943,2]
[327849092,1716557445188,-536.630205,0.00027945,14]
[327849093,1716557445199,-154.46215546,0.0002796,2]
[327849094,1716557445209,-152.07462579,0.00027991,2]
[327849095,1716557445220,-10000.0,0.00028,2]
[327849096,1716557445231,-399.026678,0.00028,2]
[327849097,1716557445241,-151.0,0.00028,20]
[327849098,1716557445251,-2500.0,0.00028,2]
[327849099,1716557445261,-211.6943475,0.00028011,2]
[327849100,1716557445272,-152.07462579,0.00028013,2]
[327849101,1716557445282,-152.0,0.00028021,3]
[327849102,1716557445292,-287.2167269,0.00028063,2]
[327849103,1716557445301,-154.46215546,0.00028072,2]
[327849104,1716557445311,-500.0,0.00028102,2]
[327849105,1716557445320,-500.0,0.00028102,2]
[327849106,1716557445330,-500.0,0.00028102,2]
[327849107,1716557445340,-500.0,0.00028102,2]
[327849108,1716557445349,-155.46791381,0.00028106,2]
[327849109,1716557445360,-160.03771857,0.00028118,2]
[327849110,1716557445369,-171.19801285,0.00028169,2]
[327849111,1716557445379,-160.07720588,0.00028195,2]
[327849112,1716557445389,-377.56,0.00028206,2]
[327849113,1716557445398,-155.46791381,0.00028215,2]
[327849114,1716557445408,-152.07462579,0.00028278,2]
[327849115,1716557445418,-287.2167269,0.00028283,2]
[327849116,1716557445427,-4858.5,0.00028314,2]
[327849117,1716557445437,-171.19801285,0.00028325,2]
[327849118,1716557445446,-152.07462579,0.00028362,2]
[327849119,1716557445455,-194.63777349,0.00028374,2]
[327849120,1716557445465,-152.07462579,0.00028438,2]
[327849121,1716557445476,-171.19801285,0.00028493,2]
[327849122,1716557445486,-1500.0,0.000285,2]
[327849123,1716557445496,-194.63777349,0.00028514,2]
[327849124,1716557445505,-194.63777349,0.0002852,2]
[327849125,1716557445515,-194.63777349,0.00028521,2]
[327849126,1716557445524,-166.66666666,0.00028615,2]
[327849127,1716557445534,-287.2167269,0.00028626,2]
[327849128,1716557445544,-160.03771859,0.00028644,2]
[327849129,1716557445554,-500.0,0.0002865,2]
[327849130,1716557445563,-500.0,0.0002865,2]
[327849131,1716557445573,-152.07462579,0.00028692,2]
[327849132,1716557445583,-536.630205,0.00028767,14]
[327849133,1716557445592,-211.6943475,0.00028815,2]
[327849134,1716557445602,-287.2167269,0.00028865,2]
[327849135,1716557445611,-152.07462579,0.00028871,2]
[327849136,1716557445620,-214.0,0.000289,2]
[327849137,1716557445630,-211.6943475,0.00028934,2]
[327849138,1716557445639,-153.39,0.00028936,2]
[327849139,1716557445650,-155.93944088,0.00028943,2]
[327849140,1716557445659,-25889.35565322,0.00028946,2]
[327849141,1716557445668,-157.54884506,0.00028952,2]
[327849142,1716557445678,-186417.52879549,0.00029,2]
[327849143,1716557445688,-725.62480673,0.00029,2]
[327849144,1716557445697,-5000.0,0.00029,2]
[327849145,1716557445707,-24696.08704791,0.00029,2]
[327849146,1716557445717,-493.92174096,0.00029,2]
[327849147,1716557445729,-1500.0,0.00029,2]
[327849148,1716557445738,-194.63777349,0.00029022,2]
[327849149,1716557445747,-152.98488687,0.00029049,2]
[327849150,1716557445756,-154.1095785,0.00029077,2]
[327849151,1716557445765,-171.19801285,0.00029115,2]
[327849152,1716557445774,-150.0,0.00029159,2]
[327849153,1716557445784,-500.0,0.00029198,2]
[327849154,1716557445793,-500.0,0.00029198,2]
[327849155,1716557445802,-500.0,0.00029198,2]
[327849156,1716557445812,-500.0,0.00029198,2]
[327849157,1716557445821,-211.6943475,0.00029209,2]
[327849158,1716557445830,-211.6943475,0.00029228,2]
[327849159,1716557445839,-151.0,0.00029307,2]
[327849160,1716557445849,-250.49088,0.00029307,2]
[327849161,1716557445858,-194.63777349,0.0002931,2]
[327849162,1716557445868,-157.54884506,0.00029317,2]
[327849163,1716557445877,-1552.59788043,0.00029345,2]
[327849164,1716557445887,-2511.04,0.00029378,2]
[327849165,1716557445896,-200.0,0.00029461,2]
[327849166,1716557445906,-200.0,0.00029462,2]
[327849167,1716557445916,-500.0,0.00029462,2]
[327849168,1716557445925,-200.0,0.00029462,2]
[327849169,1716557445934,-7500.0,0.00029476,2]
[327849170,1716557445943,-150.0,0.00029496,2]
[327849171,1716557445954,-225.59952986,0.000295,3]
[327849172,1716557445964,-1500.0,0.000295,2]
[327849173,1716557445974,-150.0,0.00029529,2]
[327849174,1716557445984,-152.98488687,0.0002954,2]
[327849175,1716557445993,-303.29216816,0.00029543,2]
[327849176,1716557446002,-150.0,0.00029549,2]
[327849177,1716557446014,-3736.82024549,0.00029576,2]
[327849178,1716557446023,-536.630205,0.00029589,14]
[327849179,1716557446033,-171.19801285,0.00029593,2]
[327849180,1716557446044,-4258.226119,0.000296,2]
[327849181,1716557446054,-154.00995323,0.00029601,2]
[327849182,1716557446064,-3439.69878498,0.00029601,2]
[327849183,1716557446073,-150.0,0.00029612,2]
[327849184,1716557446083,-155.46791381,0.00029641,2]
[327849185,1716557446092,-287.2167269,0.00029661,2]
[327849186,1716557446102,-800.0,0.00029671,2]
[327849187,1716557446111,-153.39,0.0002969,2]
[327849188,1716557446120,-903.73355239,0.00029699,2]
[327849189,1716557446130,-102322.79959697,0.000297,2]
[327849190,1716557446139,-486.0,0.000297,14]
[327849191,1716557446148,-189.0,0.000297,14]
[327849192,1716557446158,-198.0,0.000297,14]
[327849193,1716557446167,-160.0,0.000297,2]
[327849194,1716557446176,-3000.0,0.000297,2]
[327849196,1716557446188,-150.0,0.000297,6]
[327849198,1716557446201,-500.0,0.00029746,2]
[327849199,1716557446210,-500.0,0.00029746,2]
[327849200,1716557446220,-194.63777349,0.00029747,2]
[327849201,1716557446230,-171.19801285,0.00029756,2]
[327849202,1716557446239,-211.6943475,0.00029776,2]
[327849203,1716557446249,-1660.871451,0.0002978,10]
[327849204,1716557446258,-302.0,0.00029799,4]
[327849205,1716557446267,-1000.0,0.000298,10]
[327849206,1716557446279,-1000.0,0.0002982,10]
[327849207,1716557446290,-1000.0,0.0002984,10]
[327849208,1716557446299,-150.0,0.00029848,2]
[327849209,1716557446310,-287.2167269,0.00029853,2]
[327849210,1716557446319,-150.0,0.00029858,2]
[327849211,1716557446329,-1000.0,0.0002986,10]
[327849212,1716557446339,-1000.0,0.0002988,10]
[327849213,1716557446348,-154.46215546,0.00029899,2]
[327849214,1716557446358,-26271.86521789,0.000299,2]
[327849215,1716557446367,-700.0,0.000299,10]
[327849216,1716557446376,-1000.0,0.000299,10]
[327849217,1716557446385,-150.0,0.00029908,2]
[327849218,1716557446396,-1000.0,0.0002992,10]
[327849219,1716557446405,-1000.0,0.0002994,10]
[327849220,1716557446414,-1000.0,0.0002996,10]
[327849221,1716557446423,-1000.0,0.0002997,2]
[327849222,1716557446434,-1000.0,0.0002997,2]
[327849223,1716557446444,-1000.0,0.0002997,2]
[327849224,1716557446453,-1000.0,0.0002997,2]
[327849225,1716557446462,-1000.0,0.0002997,2]
[327849226,1716557446473,-1600.0,0.0002997,2]
[327849227,1716557446482,-1000.0,0.0002998,10]
[327849228,1716557446491,-19618.88251076,0.00029999,2]
[327849229,1716557446501,-164.53393834,0.0003,7]
[327849230,1716557446510,-38768.4408272,0.0003,2]
[327849231,1716557446519,-242.24624983,0.0003,14]
[327849232,1716557446529,-1000.0,0.0003,10]
[327849233,1716557446539,-876.64,0.0003,2]
[327849234,1716557446549,-11537.40549799,0.0003,5]
[327849235,1716557446560,-360.38765532,0.0003,2]
[327849236,1716557446570,-1632.36430389,0.0003,2]
[327849237,1716557446585,-1131.63569611,0.0003,2]
[327849238,1716557446595,-687.72290828,0.0003,4]
[327849239,1716557446604,-5690.83016937,0.0003,2]
[327849240,1716557446613,-71.72135744,0.0003,14]
[327849254,1716557447568,-431.96925012,0.00027067,2]
[327849255,1716557447580,-20.22938697,0.00027067,2]
[327849256,1716557447590,-428.27864256,0.0003,14]
[327849257,1716557447599,-168.86468307,0.0003,4]
[327849258,1716557447609,-300.0,0.0003,14]
[327849259,1716557447619,-300.0,0.0003,14]
[327849260,1716557447628,-194.30278221,0.0003,14]
[327849261,1716557447640,-105.69721779,0.0003,14]
[327849262,1716557447649,-238.01403167,0.0003,2]
[327849263,1716557447661,-1278.55706747,0.0003,2]
[327849264,1716557447671,-1776.3344768,0.0003,4]
[327849265,1716557447687,-267.96249102,0.00027066,2]
[327849266,1716557447697,-263.14754649,0.0003,4]
[327849267,1716557447708,-450.0,0.0003,4]
[327849268,1716557447776,-896.01,0.0003,4]
[327849277,1716557518148,157.87,0.00027068,30]
[327849278,1716557521096,152.0,0.0003,31]
[327849293,1716557820987,151.0,0.0003,31]
[327849302,1716558107392,157.87,0.00027068,30]
[327849388,1716558617898,157.87,0.00027068,30]
[327849393,1716558633201,-155.0,0.00010568,2]
[327849394,1716558633212,-226.12850537,0.00010568,2]
[327849395,1716558633221,-2814.6457293,0.00010569,2]
[327849396,1716558633231,-290.59150024,0.00010569,2]
[327849397,1716558633241,-3540.90912473,0.0001057,2]
[327849398,1716558633250,-505.36917605,0.0001057,2]
[327849399,1716558633261,-514.0,0.00010571,2]
[327849400,1716558633271,-267.96249102,0.00010571,2]
[327849401,1716558633281,-526.3511785,0.00010571,2]
[327849402,1716558633291,-151869.54939446,0.00010572,2]
[327849403,1716558633301,-294.48,0.00010573,2]
[327849404,1716558633311,-200.0,0.00012097,2]
[327849405,1716558633321,-299.5,0.00012147,2]
[327849406,1716558633330,-968.89,0.00012168,2]
[327849407,1716558633341,-150.0,0.00012168,2]
[327849408,1716558633350,-250.0,0.00012456,2]
[327849409,1716558633360,-307.13,0.00012456,2]
[327849410,1716558633371,-250.0,0.0001251,2]
[327849411,1716558633380,-1000.0,0.00012639,2]
[327849412,1716558633390,-12270.459,0.00012736,2]
[327849413,1716558633400,-734.41,0.00012837,2]
[327849414,1716558633410,-294.48,0.00012837,2]
[327849415,1716558633420,-9681.5374,0.000129,2]
[327849416,1716558633434,-174.238497,0.000129,2]
[327849417,1716558633444,-11075.7619,0.000129,2]
[327849418,1716558633454,-11685.18250085,0.000129,2]
[327849419,1716558633463,-499.99,0.000129,2]
[327849420,1716558633474,-168.06517559,0.000129,2]
[327849421,1716558633483,-6914.6303,0.000129,2]
[327849422,1716558633492,-471.4601,0.000129,2]
[327849423,1716558633502,-1196.64090148,0.000129,2]
[327849424,1716558633511,-275.68049958,0.000129,2]
[327849425,1716558633521,-13288.31869468,0.000129,2]
[327849426,1716558633530,-176.59051276,0.000129,2]
[327849427,1716558633540,-784.30875841,0.00012949,2]
[327849428,1716558633549,-326.15186733,0.00012953,2]
[327849429,1716558633558,-7852.03221917,0.00012954,2]
[327849430,1716558633567,-15812.32416606,0.00012955,2]
[327849431,1716558633584,-25562.09487517,0.00012955,2]
[327849432,1716558633594,-709.19,0.00012955,2]
[327849433,1716558633603,-2854.68,0.0001299,2]
[327849434,1716558633614,-205.48746961,0.0001299,2]
[327849435,1716558633624,-151.31,0.0001299,2]
[327849436,1716558633634,-151.31,0.0001299,2]
[327849437,1716558633643,-151.31,0.0001299,2]
[327849438,1716558633659,-151.31,0.0001299,2]
[327849439,1716558633669,-151.31,0.0001299,2]
[327849440,1716558633681,-6164.42169924,0.00012998,2]
[327849441,1716558633690,-302.80861373,0.00012998,2]
[327849442,1716558633699,-2187.62154477,0.00012998,2]
[327849443,1716558633708,-683.73446639,0.00012999,2]
[327849444,1716558633718,-3148.28246,0.00012999,2]
[327849445,1716558633727,-127827.00451298,0.00013,2]
[327849447,1716558633738,-876.02946101,0.00013,2]
[327849449,1716558633750,-713.54686118,0.00013,2]
[327849451,1716558633761,-1068.965344,0.00013,2]
[327849454,1716558633776,-753.66321503,0.00013,2]
[327849457,1716558638637,-2004.43882799,0.00013,2]
[327849458,1716558638650,-1994.12831119,0.00013,2]
[327849459,1716558638664,-1271.83638898,0.00013,2]
[327849460,1716558638867,-7774529.02783762,0.00013,2]
[327849461,1716558638878,-1023268.83267899,0.00013,2]
[327849463,1716558640429,-1673.62323021,0.00013,2]
[327849464,1716558641394,-5629.478415,0.00013,2]
[327849465,1716558641406,-1684.73305,0.00013,2]
[327849466,1716558641417,-112252.71711986,0.00013,2]
[327849468,1716558643509,-484.10117909,0.000129,2]
[327849470,1716558643522,-525078.40275131,0.00013,2]
[327849478,1716558643710,-3252.63234805,0.00013,2]
[327849479,1716558643725,-37168.925772,0.00013,2]
[327849488,1716558643894,-292.1285996,0.00012999,2]
[327849490,1716558643907,-6432.98640039,0.00013,2]
[327849491,1716558643923,-403.814,0.00013,2]
[327849492,1716558643939,-1161.985,0.00013,2]
[327849561,1716558645751,-404.26828087,0.00012999,2]
[327849562,1716558645915,-2410.37744843,0.00012999,2]
[327849563,1716558645925,-267.96249102,0.00012999,2]
[327849564,1716558645942,-8191.31707344,0.00013,2]
[327849565,1716558645954,-1380.30322781,0.00013,2]
[327849566,1716558645966,-26128.59796295,0.00013,2]
[327849567,1716558645978,-73287.05475345,0.00013,2]
[327849626,1716558839171,-226.12850537,0.00010958,2]
[327849627,1716558839193,-338.64,0.00010959,2]
[327849628,1716558839221,-548.02537877,0.00012794,2]
[327849629,1716558839242,-267.96249102,0.00012894,2]
[327849630,1716558839263,-2814.6457293,0.00012895,2]
[327849631,1716558839285,-505.36917605,0.00012896,2]
[327849632,1716558839307,-2920.04732138,0.00012897,2]
[327849633,1716558839330,-7500.0,0.000129,2]
[327849634,1716558839355,-447.54178308,0.000129,2]
[327849635,1716558839376,-308.99747025,0.000129,2]
[327849636,1716558839398,-150.0,0.00012998,2]
[327849637,1716558839420,-300.0,0.00012998,2]
[327849638,1716558839441,-156.11916462,0.00012999,2]
[327849639,1716558839462,-189.02626166,0.00012999,2]
[327849640,1716558839484,-15544.63486817,0.00012999,2]
[327849641,1716558839508,-467782.86185033,0.00013,2]
[327849643,1716559110340,157.87,0.00027068,30]
[327849648,1716559455398,3022.24209,0.00031,120]
[327849651,1716559563468,301.16,9.741e-05,2]
[327849652,1716559585245,157.87,0.00027068,30]
[327849663,1716559758444,2000.0,0.00031,120]
[327849677,1716559833788,-267.96249102,0.00010832,2]
[327849679,1716559833798,-2814.6457293,0.00010832,2]
[327849680,1716559833808,-505.36917605,0.00010833,2]
[327849682,1716559833818,-337.24052833,0.00010852,2]
[327849684,1716559833828,-150.0,0.00010858,2]
[327849686,1716559833838,-15220.6056,0.00010859,2]
[327849687,1716559833850,-23900.0,0.00011301,2]
[327849689,1716559833860,-250.0,0.00011313,2]
[327849691,1716559833869,-2735.87554032,0.00011319,2]
[327849693,1716559834059,-723.93,0.00011319,2]
[327849694,1716559834072,-655.27445968,0.00011319,2]
[327849695,1716559834081,-1500.0,0.00011342,2]
[327849696,1716559834091,-500.0,0.00011353,2]
[327849697,1716559834100,-200.0,0.00011454,2]
[327849698,1716559834109,-159.53,0.00011503,2]
[327849699,1716559834118,-200.0,0.00011522,2]
[327849700,1716559834128,-836.57,0.00011522,2]
[327849701,1716559834138,-1017.75,0.00011575,2]
[327849702,1716559834147,-3608.81,0.00011575,2]
[327849703,1716559834156,-508.34,0.00011601,2]
[327849704,1716559834165,-250.0,0.00011608,2]
[327849705,1716559834176,-2582.49,0.00011675,2]
[327849706,1716559834185,-159.53,0.00011703,2]
[327849707,1716559834194,-289.59,0.00011742,2]
[327849708,1716559834204,-627.99,0.00011879,2]
[327849709,1716559834214,-500.0,0.00011879,3]
[327849710,1716559834223,-159.53,0.00011903,2]
[327849711,1716559834232,-210.0,0.00011944,2]
[327849712,1716559834241,-301.16,0.00012005,2]
[327849713,1716559834251,-159.53,0.00012102,2]
[327849714,1716559834260,-165.21,0.00012176,2]
[327849715,1716559834271,-800.0,0.00012593,2]
[327849716,1716559834280,-169.98,0.00012646,2]
[327849718,1716559834290,-2605.72998571,0.0001274,2]
[327849721,1716559834299,-1552.59788043,0.00012768,2]
[327849723,1716559834309,-3000.0,0.0001287,2]
[327849724,1716559834318,-200.0,0.00012885,2]
[327849725,1716559834328,-1281.467,0.000129,2]
[327849726,1716559834338,-1153.85974698,0.000129,2]
[327849727,1716559834351,-24939.4780782,0.000129,2]
[327849728,1716559834364,-672.29162,0.000129,2]
[327849729,1716559834376,-2168.0,0.000129,2]
[327849730,1716559834387,-5766.6964018,0.000129,2]
[327849731,1716559834397,-271.1759,0.000129,2]
[327849732,1716559834406,-820.15609381,0.000129,2]
[327849733,1716559834418,-560.86713554,0.000129,2]
[327849734,1716559834429,-325.56567065,0.000129,2]
[327849735,1716559834438,-29.78403429,0.000129,2]
[327849736,1716559834450,-270.98385237,0.000129,2]
[327849737,1716559834462,-516.505,0.000129,2]
[327849738,1716559834474,-182.72711334,0.000129,2]
[327849739,1716559834483,-685.07499066,0.000129,2]
[327849740,1716559834495,-278.2304685,0.000129,2]
[327849741,1716559834505,-4370.63447601,0.000129,2]
[327849742,1716559834515,-312.60095327,0.000129,2]
[327849743,1716559834524,-800.0,0.00012959,2]
[327849744,1716559834534,-800.0,0.00012959,2]
[327849745,1716559834544,-800.0,0.00012986,2]
[327849746,1716559834553,-800.0,0.00012986,2]
[327849747,1716559834563,-151.25,0.0001299,2]
[327849748,1716559834573,-151.25,0.0001299,2]
[327849749,1716559834582,-151.25,0.0001299,2]
[327849750,1716559834593,-151.25,0.0001299,2]
[327849751,1716559834603,-386.76170097,0.00012998,2]
[327849752,1716559834612,-233.04,0.00012998,2]
[327849753,1716559834622,-499.99,0.00012998,2]
[327849754,1716559834632,-163.49476447,0.00012999,2]
[327849755,1716559834641,-314.006518,0.00012999,2]
[327849756,1716559834651,-14439.09530936,0.00012999,2]
[327849757,1716559834660,-150.0,0.00012999,2]
[327849758,1716559834670,-289649.2443201,0.00013,2]
[327849765,1716559837977,-1023268.83267899,0.00013,2]
[327849769,1716559838804,-355.11375536,0.00013,2]
[327849863,1716559840752,-368.20071861,0.00013,2]
[327849865,1716559840765,-488.73793469,0.00013,2]
[327849890,1716559841531,-127294.36480378,0.00013,2]
[327849891,1716559842903,-10044.09999998,0.00013,2]
[327849892,1716559843184,-539.06283141,0.00013,2]
[327849893,1716559843198,-16143.35957632,0.00013,2]
[327849896,1716559843211,-369.765,0.00013,2]
[327849898,1716559843224,-1103.4,0.00013,2]
[327849908,1716559843294,-257358.47911905,0.00013,2]
[327849921,1716559844065,-8159.97999995,0.00013,2]
[327849922,1716559844080,-2536.56047194,0.00013,2]
[327849923,1716559844102,-717.95701907,0.00013,2]
[327849924,1716559844239,-525078.40275131,0.00013,2]
[327849927,1716559846863,-617.54507416,0.00012999,2]
[327849928,1716559846873,-5900602.41788515,0.00013,2]
[327849929,1716559846884,-913055.75986642,0.00013,2]
[327849930,1716559846893,-150.99,0.00013,2]
[327849931,1716559846903,-800.0,0.00013014,2]
[327849932,1716559846913,-5004.85022036,0.0001305,2]
[327849933,1716559846923,-800.0,0.00013479,2]
[327849934,1716559846933,-1000.0,0.000135,2]
[327849935,1716559846943,-800.0,0.00013671,2]
[327849936,1716559846953,-800.0,0.00013671,2]
[327849937,1716559846962,-500.0,0.00013699,2]
[327849938,1716559846972,-2751.0,0.00013699,2]
[327849939,1716559846983,-200.0,0.00013699,2]
[327849940,1716559847000,-169.86,0.00013973,2]
[327849941,1716559847010,-408.62,0.00013973,2]
[327849942,1716559847020,-167.37,0.00013973,2]
[327849943,1716559847031,-800.0,0.00014167,2]
[327849944,1716559847041,-301.16,0.00014269,2]
[327849945,1716559847051,-1017.75,0.00014315,2]
[327849946,1716559847061,-200.0,0.00014317,2]
[327849947,1716559847071,-1153.85974688,0.00014945,2]
[327849948,1716559847083,-3201.0,0.00015,2]
[327849949,1716559847094,-8093.03165422,0.00015,2]
[327849950,1716559847106,-155.0,0.00015,2]
[327849951,1716559847115,-155.0,0.00015,2]
[327849952,1716559847125,-619.21183689,0.00015,2]
[327849953,1716559847134,-1916.41046067,0.00015,2]
[327849954,1716559847145,-149874.75542945,0.00015,2]
[327849955,1716559847155,-814.0,0.00015,2]
[327849956,1716559847164,-1000.0,0.00015,2]
[327849957,1716559847173,-1000.0,0.00015,2]
[327849958,1716559847182,-150.45,0.00015068,2]
[327849959,1716559847192,-3000.0,0.0001537,2]
[327849960,1716559847202,-15637.93002308,0.000154,2]
[327849961,1716559847441,-800.0,0.00015741,2]
[327849962,1716559847455,-200.0,0.00015749,2]
[327849963,1716559847464,-167.0,0.00015831,2]
[327849964,1716559847474,-1061.0,0.00016044,2]
[327849965,1716559847484,-167.0,0.00016354,2]
[327849966,1716559847493,-261.361,0.0001637,2]
[327849967,1716559847503,-150.0,0.0001637,2]
[327849968,1716559847512,-150.254,0.0001637,2]
[327849969,1716559847522,-1104.424,0.0001637,2]
[327849970,1716559847532,-1644.0,0.0001637,2]
[327849971,1716559847541,-439.0,0.0001637,2]
[327849972,1716559847551,-445.0,0.0001637,2]
[327849973,1716559847560,-809.0,0.0001637,2]
[327849974,1716559847570,-150.45,0.00016438,2]
[327849975,1716559847580,-301.16,0.00016533,2]